Cogmind - Beta 13 @@@ ROGUE MODE // 2024.05.03 @ 23:06:44 Player: BionicBot Result: Destroyed by D-53 Grenadier with Mini Grenade Launcher Performance ------------- Evolutions (0) 0 Regions Visited (2) 400 Robots Destroyed (27) 135 Value Destroyed (370) 370 Prototype IDs (0) 0 Alien Tech Used (0) 0 Bonus (0) 0 TOTAL SCORE: 905 Bonus ------- None Cogmind --------- Core Integrity 0/250 Matter 165/300 Energy 99/100 System Corruption 0% Temperature Cool (0) Movement Core (50) Location -10/Mines Parts ------- > --- POWER (1) -------- (None) > --- PROPULSION (2) --- (None) > --- UTILITY (2) ------ (None) > --- WEAPON (2) ------- (None) > --- INVENTORY (5) ---- Improved Ion Engine Seismic Detector Core Shielding Light Assault Rifle Maul Peak State ------------ > --- POWER ------------ Improved Ion Engine > --- PROPULSION ------- Flight Unit Flight Unit > --- UTILITY ---------- Medium Storage Unit Improved Targeting Computer > --- WEAPON ----------- Grenade Launcher Rocket Launcher > --- INVENTORY -------- Improved Ion Engine Improved Ion Engine Seismic Detector Core Shielding Light Armor Plating Beam Cannon Light Assault Rifle Light Assault Rifle Maul [Rating: 11] Favorites ----------- Power Improved Ion Engine Engine Improved Ion Engine Propulsion Flight Unit Leg Aluminum Leg Hover Unit Hover Unit Flight Unit Flight Unit Utility Medium Storage Unit Device Seismic Detector Storage Medium Storage Unit Processor Improved Targeting Computer Weapon Light Assault Rifle Energy Gun Small Laser Energy Cannon Beam Cannon Ballistic Gun Light Assault Rifle Launcher Grenade Launcher Build | -11 -10 -10 ------- Run | Yrd Mat Min Slots Evolved . | . . . Power . | . . . Propulsion . | . . . Utility . | . . . Weapon . | . . . Parts Attached 26 | 7 15 4 Power 2 | 1 1 . Engine 2 | 1 1 . Core . | . . . Reactor . | . . . Propulsion 9 | 2 6 1 Treads . | . . . Leg 2 | 2 . . Wheel . | . . . Hover 2 | . 2 . Flight 5 | . 4 1 Utility 4 | 2 2 . Device 1 | 1 . . Storage 2 | 1 1 . Processor 1 | . 1 . Hackware . | . . . Protection . | . . . Artifact . | . . . Weapon 11 | 2 6 3 Energy Gun 1 | 1 . . Energy Cannon 3 | . 2 1 Ballistic Gun 3 | 1 2 . Ballistic Cannon . | . . . Launcher 4 | . 2 2 Special Weapon . | . . . Impact Weapon . | . . . Slashing Weapon . | . . . Piercing Weapon . | . . . Special Melee Weapon . | . . . Unidentified Prototypes . | . . . Parts Lost 8 | . 2 6 Power 1 | . . 1 Propulsion 5 | . 2 3 Utility . | . . . Weapon 2 | . . 2 Highest Loss Streak 4 | . 1 4 To Critical Strikes . | . . . Average Slot Usage (%) 97 | . 99 87 Engine 13 | . 14 12 Leg 3 | . 4 . Hover 8 | . 10 . Flight 13 | . 11 22 Device 3 | . 3 . Storage 13 | . 14 12 Processor 10 | . 10 12 Energy Gun 8 | . 9 . Energy Cannon 5 | . 7 . Ballistic Gun 8 | . 8 7 Launcher 4 | . 2 16 Naked Turns 43 | . . 43 Heaviest Build 24 | 13 21 24 Greatest Support 20 | 20 20 8 Greatest Overweight (x) 5 | 3 5 5 Average Overweight (x) 1 | . 1 1 Largest Inventory Capacity 10 | 8 10 10 Average Capacity 9 | 7 9 9 Most Carried 10 | 4 10 9 Average Carried 8 | . 8 8 Final Capacity 10 | 8 10 5 Final Carried 9 | 4 9 5 Class Distribution -------------------- 100% | Mutant Dominant Class ---------------- Mutant | -10/Materials Mutant | -10/Mines Resources | -11 -10 -10 ----------- Run | Yrd Mat Min Matter Collected 503 | 276 140 87 Remotely . | . . . Salvage Created 547 | 90 369 88 Parts 55 | 9 38 8 Haulers Intercepted . | . . . Recyclers Shooed 3 | . 3 . Parts Field Recycled . | . . . Retrieved Matter . | . . . Parts Self-Destructed . | . . . Prevented . | . . . Kills | -11 -10 -10 ------- Run | Yrd Mat Min Combat Hostiles Destroyed 24 | . 12 12 Guns 6 | . 6 . Cannons 3 | . 3 . AOE 15 | . 3 12 Classes Destroyed 9 | 1 6 2 Worker 1 | . 1 . Builder 1 | . . 1 Tunneler 4 | 4 . . Recycler 2 | . 2 . Operator 1 | . 1 . Watcher 2 | . 2 . Swarmer 12 | . 9 3 Grunt 4 | . 3 1 Assembled 8 | . . 8 Best Kill Streak 8 | 2 4 8 Combat Bots Only 8 | . 3 8 Max Kills in Single Turn 7 | 1 2 7 Gunslinging . | . . . Exploded 7 | . 2 7 Melee . | . . . Uniques/NPCs Destroyed . | . . . Combat | -11 -10 -10 -------- Run | Yrd Mat Min Hostile Shots Fired 86 | . 55 31 Missed 24 | . 16 8 Damage Taken 839 | . 359 480 Core 256 | . 92 164 Absorbed by Shields . | . . . Core Remaining (%) 100 | 100 . . Volleys Fired 75 | 6 56 13 Largest 2 | 2 2 2 Hottest 100 | 60 100 63 Shots Fired 140 | 12 111 17 Gun 94 | 12 80 2 Cannon 28 | . 26 2 Launcher 18 | . 5 13 Special . | . . . Kinetic 36 | 6 28 2 Thermal 86 | 6 78 2 Explosive 18 | . 5 13 Electromagnetic . | . . . Robot Hit Streak 9 | 6 9 4 Robot Miss Streak 4 | 1 4 1 Penetration Max . | . . . Secondary Targets 2 | . 2 . Max Gunslinging Chain 1 | . 1 . Shots Hit Robots 74 | 8 58 8 Core Hits 59 | 6 33 20 Critical Kills . | . . . Critical Parts Destroyed . | . . . Critical Strikes . | . . . Melee Attacks . | . . . Impact . | . . . Slashing . | . . . Piercing . | . . . Sneak Attacks . | . . . Combat Hostiles . | . . . Follow-up Attacks . | . . . Damage Inflicted 2006 | 87 1062 857 Guns 510 | 85 425 . Cannons 229 | . 212 17 Explosions 1253 | . 413 840 Melee . | . . . Ramming 14 | 2 12 . Kinetic 142 | 32 110 . Thermal 597 | 53 527 17 Explosive 1055 | . 215 840 Electromagnetic 198 | . 198 . Impact . | . . . Slashing . | . . . Piercing . | . . . Highest Corruption . | . . . Average Corruption . | . . . Corruption Purged . | . . . Corruption Blocked . | . . . Overload Shots . | . . . Overflow Damage 30 | . 5 25 Projectiles . | . . . Explosions 30 | . 5 25 Melee . | . . . Knockbacks . | . . . Impact . | . . . Kinetic . | . . . Secondary . | . . . Self-Inflicted Damage 77 | . 16 61 Shots 5 | . 1 4 Rammed . | . . . Targets Rammed 4 | 1 3 . Kicked 4 | 1 3 . Crushed . | . . . Highest Temperature 397 | 40 397 22 Average Temperature 98 | 17 109 10 Received Heat Transfer 74 | . 54 20 Effects 4 | . 4 . Shutdowns 1 | . 1 . Energy Bleed 1 | . 1 . Short Circuit 1 | . 1 . Damage (minor) 1 | . 1 . Siege Activations . | . . . Robots Corrupted . | . . . Combat Hostiles . | . . . Parts Fried 1 | . 1 . Impact Corruptions . | . . . Robots Melted . | . . . Combat Hostiles . | . . . Parts Melted . | . . . Heat Transferred 1306 | 125 1144 37 Parts Sabotaged . | . . . Parts Stolen . | . . . Parts Stripped . | . . . Power Chain Reactions . | . . . Alert | -11 -10 -10 ------- Run | Yrd Mat Min Peak Influence 223 | 20 223 223 Initial 13 | . 13 . Average 68 | 6 65 112 Maximum Alert Level 1 | . 1 1 Low Security (%) 91 | 100 90 89 Level 1 8 | . 9 10 Level 2 . | . . . Level 3 . | . . . Level 4 . | . . . Level 5 . | . . . High Security . | . . . Max Security . | . . . Squads Dispatched 3 | . 3 . Investigation 2 | . 2 . Extermination . | . . . Reinforcement 1 | . 1 . Assault . | . . . Garrison . | . . . Intercept . | . . . Searches Triggered . | . . . Construction Impeded . | . . . Haulers Reinforced . | . . . Active Scanning Responses . | . . . Cargo Convoy Interrupts . | . . . Stealth | -11 -10 -10 --------- Run | Yrd Mat Min Distress Signals 1 | . 1 . Communications Jammed . | . . . Distress Signals . | . . . Times Spotted 46 | . 21 25 Peak Tracking Total 9 | . 5 9 Tactical Retreats 4 | . 1 3 Traps | -11 -10 -10 ------- Run | Yrd Mat Min Traps Triggered 1 | . 1 . Indirectly . | . . . Trap Hack Attempts . | . . . Triggered . | . . . Disarmed . | . . . Reprogrammed . | . . . Reused . | . . . Traps Extracted . | . . . Installed . | . . . Triggered . | . . . Machines | -11 -10 -10 ---------- Run | Yrd Mat Min Machines Disabled 2 | . 2 . Max in Single Turn 2 | . 2 . Machines Repaired . | . . . Machines Dismantled . | . . . Machines Sabotaged . | . . . Overloaded Fab Kills . | . . . Hacking | -11 -10 -10 --------- Run | Yrd Mat Min Machines Accessed 7 | . 6 1 Terminals 6 | . 5 1 Fabricators . | . . . Repair Stations . | . . . Recycling Units 1 | . 1 . Scanalyzers . | . . . Garrison Access . | . . . Total Hacks 8 | . 7 1 Successful 2 | . 2 . Failed 6 | . 5 1 Catastrophic 2 | . 1 1 Database Lockouts . | . . . Manual 7 | . 6 1 Terminals 7 | . 6 1 Fabricators . | . . . Repair Stations . | . . . Recycling Units 1 | . 1 . Scanalyzers . | . . . Garrison Access . | . . . Terminal Hacks 1 | . 1 . Branch Access Points 1 | . 1 . Fabricator Hacks . | . . . Repair Station Hacks . | . . . Recycling Unit Hacks 1 | . 1 . Retrieve Components 1 | . 1 . Scanalyzer . | . . . Garrison Access Hacks . | . . . Unauthorized Hacks . | . . . Terminals . | . . . Fabricators . | . . . Repair Stations . | . . . Recycling Units . | . . . Scanalyzers . | . . . Garrison Access . | . . . Data Cores Recovered . | . . . Used . | . . . Hacking Detections 6 | . 5 1 Full Trace Events . | . . . Feedback Events . | . . . Feedback Blocked . | . . . Robot Schematics Acquired . | . . . Robots Built . | . . . Authchips . | . . . Time . | . . . Total Robot Build Rating . | . . . Part Schematics Acquired . | . . . Parts Built . | . . . Authchips . | . . . Time . | . . . Total Part Build Rating . | . . . Parts Repaired . | . . . Time . | . . . Parts Recycled . | . . . Recycled Matter . | . . . Retrieved Matter . | . . . Retrieved Components 9 | . 9 . Parts Scanalyzed . | . . . Part Schematics Acquired . | . . . Parts Damaged . | . . . Bothacking | -11 -10 -10 ------------ Run | Yrd Mat Min Used RIF Installer . | . . . Robots Hacked . | . . . Non-combat . | . . . Combat . | . . . Robot Hacks Applied . | . . . Relay Couplers Released . | . . . Fabnet Peak Effective % . | . . . Robots Rewired . | . . . Allies Hacked . | . . . Hacks Repelled . | . . . Allies | -11 -10 -10 -------- Run | Yrd Mat Min Total Allies . | . . . Largest Group . | . . . Highest-Rated Group . | . . . Highest-Rated Ally . | . . . Total Orders . | . . . Ally Attacks . | . . . Total Damage . | . . . Kills . | . . . Allies Corrupted . | . . . Allies Melted . | . . . Intel | -11 -10 -10 ------- Run | Yrd Mat Min Robot Analysis Total . | . . . Derelict Logs Recovered 1 | . . 1 Drone Launches . | . . . Drone Recoveries . | . . . Exploration | -11 -10 -10 ------------- Run | Yrd Mat Min Turns Passed 2337 | 205 1739 393 Spaces Moved 1280 | 134 917 229 Core 101 | 13 2 86 Treads . | . . . Legs 218 | 121 97 . Wheels . | . . . Hover 493 | . 493 . Flight 468 | . 325 143 Fastest Speed 50 | 50 116 50 Average Speed 145 | 126 146 155 Slowest Speed 440 | 200 440 440 Overloaded Moves . | . . . Propulsion Burnouts . | . . . Robots Hopped . | . . . Cave-ins Triggered . | . . . Exploration Rate (%) 52 | 8 96 54 Regions Visited 2 Branch Regions 1 Pre-discovered Areas 1 | . . 1 Known Exits Taken 1 | . 1 . Unknown Exits Taken 1 | 1 . . Scrap Searched 2 | . . 2 Spaces Dug 9 | . . 9 Terrain Destroyed 132 | . 21 111 Melee . | . . . Projectile . | . . . AOE 132 | . 21 111 Terrain Rammed . | . . . Walls Destroyed . | . . . Machines Disabled . | . . . Actions | -11 -10 -10 --------- Run | Yrd Mat Min Total 1615 | 155 1212 248 Wait 194 | 3 190 1 Move 1278 | 133 916 229 Hop . | . . . Pick Up 20 | 5 14 1 Fast Attach 12 | 6 6 . Attach 5 | 1 2 2 Detach 3 | . 3 . Swap 9 | . 7 2 Drop 15 | . 15 . Fire 75 | 6 56 13 Melee . | . . . Ram . | . . . Kick 4 | 1 3 . Crush . | . . . Escape Stasis . | . . . Rewire . | . . . Trap . | . . . Miscellaneous . | . . . Route ------- -11/Scrapyard -10/Materials (discovered 4 exits: [*Mat x3] / *Min) -10/Mines (discovered 1 exit: [*Mat]) History --------- Turn | Location | Event 2 | -11/Scrapyard | Met Revision 17 22 | -11/Scrapyard | Discovered new exit (range 15) 206 | -11/Scrapyard | Entered Materials 302 | -10/Materials | Build established: Mutant 524 | -10/Materials | Discovered new exit (range 14) 759 | -10/Materials | Discovered new exit (range 15) 1064 | -10/Materials | Discovered new exit (range 16) 1445 | -10/Materials | Discovered new exit (range 14) 1839 | -10/Materials | Identified exit to Mines 1945 | -10/Materials | Entered Mines 2007 | -10/Mines | Received a Rocket Launcher from a helpful Derelict 2208 | -10/Mines | Assembled infested the area 2241 | -10/Mines | Core integrity fell below 50% 2264 | -10/Mines | Destroyed 8 combat bots 2295 | -10/Mines | Released all parts (3) 2307 | -10/Mines | Core integrity fell below 20% 2313 | -10/Mines | Learned location of Zion (-6) 2319 | -10/Mines | Discovered new exit (range 8) 2324 | -10/Mines | Lost 4 parts (1p1n2w) 2338 | -10/Mines | Destroyed by D-53 Grenadier with Mini Grenade Launcher Last Messages --------------- 02285_ D-53 Grenadier unfolds itself. 02285_ Grenade Launcher destroyed. 02285_ as-08042 destroyed. 02289_ The unstable cave ceiling collapses. 02291_ Imp. Ion Engine destroyed. 02291_ Rocket Launcher destroyed. 02293_ Flight Unit destroyed. 02293_ U-05 Engineer destroyed. 02295_ Released Beam Cannon. 02295_ Released Imp. Targeting Computer. 02295_ Released Med. Storage Unit. 02298_ as-72462 destroyed. 02306_ as-46652 destroyed. 02313_ Acquired derelict log, extracted data. World map updated: -6/Zion. 02314_ A derelict is hurriedly installing traps. 02316_ C5-45R(g): "Hehe, this'll put a wrench in their mining defense operations..." 02316_ C5-45R(g) slips into the shadows. 02319_ EXIT=FOUND Map ----- +----------------------------------------------------+ | | | | | | | | | | | | | | | | | | | | | | | | | | | | | | | | | ?????????????????????????????????????????????????? | | ???????????????????????????????????????????####### | | ??????????????????????????????????????????# ^ # | | ?????????????????????????????????????????## # #^ # | | ??????????????????????????????????????#### # # # | | ???????????????###???????????????????## ^ #^ # | | ??????????????## #######??#####????## ^## ^ | | ?????????????## #### ##??## | | ????????? ## ## #### # | | ????????? @ ### | | ???????? *==t #?# | | ???????? % !%##### #?# | | ???????? ###???## #?? | | ????????? ## ! #??????# ### | | ???????????????#### #??????## | | ??????????????????## ???????##### | | ???????????????????# #??????????########## | | ???????????????????## d ##?????????????????? | | ????????????????????#### d ##????????????????? | | ???????????????????????# ##?#####?????????? | | ???????????????????????## =%### ##????????? | | ????????????????????????# =* #????????? | | ????????????????????????#### #????????? | | ???????????????????????????## ##????????? | | ??????????????????????????## ## ##????????? | | ??????????????????????????# #### #????????? | | ??????????????????????????# #### #????????? | | ??????????????????????????# # #????????? | | ??????????????????????????## #######???? | | ??????????????????????###### #???? | | ?????????????????? "%" * ##### #???? | | ???????????????????????##### !][ #?????????? | | ???????????????????????????# ! #??## ##??? | | ???????????????????????????#### ## #??? | +----------------------------------------------------+ Best States ------------- Heat Dissipation 25 Energy Generation 12 Energy Capacity 265 Matter Stores 300 Matter Capacity 300 Sight Range 16 Terrain Scan Density 10 Evasion (%) 55 Targeting Accuracy 6 Item Schematics ----------------- None Robot Schematics ------------------ None Fabricated ------------ Nothing Alien Tech Used ----------------- None Achievements -------------- Quick And Dirty Challenges ------------ None Game ------ Seed BladeReinforcedCoupler Manual? 0 Play Time 00:23:15 Cumulative 27.6 hours Start 2024.05.03 @ 22:42:57 End 2024.05.03 @ 23:06:44 Sessions 1 Manual Loads 0 Difficulty Rogue Special Mode None Game No. 32 Rogue 32 Adventurer 0 Explorer 0 Win Type - Total 0 Types 0/0/0/0/0/0/0/0/0 Lore% 6 Gallery% 24 Achievement% 19 Wizard Run 0 Options --------- Layout 0 ASCII 0 Keyboard 1 Movement Numpad Keybinds 0 Fullscreen 2 Font 18/SmallcapsGlow Map View 76x50 Zoom Use 0% Tactical HUD 1 Map Filters NONE Filters NONE Steam 1 RUN: a1f59289-d136-4258-8e9b-5bbd21ed608f